Cogmind - Beta 16.1 @@@ ROGUE MODE // 2026.02.24 @ 20:02:05 Player: Megaknight51 Result: Self-destructed Performance ------------- Evolutions (3) 1500 Regions Visited (11) 2200 Robots Destroyed (155) 775 Value Destroyed (4896) 4896 Prototype IDs (21) 420 Alien Tech Used (1) 200 Bonus (739) 739 TOTAL SCORE: 10730 Bonus ------- High Alert Combat Kills 86 Follower Combat Kills 386 Met Data Miner 300 Friendly Fire -33 Cogmind --------- Core Integrity 111/700 Matter 220/300 Energy 198/265 System Corruption 17% Temperature Cool (28) Movement Core (1700) Ox33 Location -7/Data Miner Parts ------- > --- POWER (2) -------- Improved Ion Engine > --- PROPULSION (2) --- (None) > --- UTILITY (6) ------ Advanced Heat Sink Huge Storage Unit Hacking Suite Makeshift Hacking Suite > --- WEAPON (4) ------- Beam Rifle Improved EM Pulse Cannon Battle Cannon > --- INVENTORY (25) --- Deuterium Engine Improved Deuterium Engine Micro Nuclear Core Armored Wheel Armored Wheel Armored Wheel Armored Wheel High-capacity Matter Pod (105) Improved Propulsion Shielding Hardened Medium Armor Plating Improved Medium Armor Plating Improved Medium Armor Plating Improved Medium Armor Plating Hacking Suite Improved Field Recycling Unit (0) Mining Laser Plasma Cutter Heavy Mace Peak State ------------ > --- POWER ------------ Deuterium Engine Micro Nuclear Core > --- PROPULSION ------- Armored Huge Wheel > --- UTILITY ---------- Huge Storage Unit Experimental Sensor Array Improved Signal Interpreter Hacking Suite Hacking Suite > --- WEAPON ----------- Gauss Rifle Advanced Assault Cannon Proton Missile Launcher Missile Launcher > --- INVENTORY -------- Improved Ion Engine Light Nuclear Core Light Nuclear Core Micro Nuclear Core Armored Wheel Armored Wheel Armored Wheel Armored Wheel High-capacity Matter Pod Improved Propulsion Shielding Hardened Medium Armor Plating Hardened Medium Armor Plating Improved Medium Armor Plating Improved Medium Armor Plating Improved Medium Armor Plating Improved Medium Armor Plating Improved Shield Generator Hacking Suite Improved EM Pulse Cannon Flak Gun Gauss Cannon Mining Laser Plasma Cutter Heavy Mace [Rating: 56] Favorites ----------- Power Improved Ion Engine Engine Improved Ion Engine Power Core Micro Nuclear Core Propulsion Wheel Wheel Wheel Utility Hacking Suite Device Experimental Sensor Array Storage Huge Storage Unit Processor Improved Signal Interpreter Hackware Hacking Suite Protection Hardened Light Armor Plating Weapon Gauss Rifle Energy Gun Shock Rifle Energy Cannon Improved EM Pulse Cannon Ballistic Gun Gauss Rifle Ballistic Cannon Assault Cannon Launcher Proton Missile Launcher Impact Weapon Heavy Mace Slashing Weapon Axe Build | -11 -10 -10 -9 -9 -9 -8 -8 -7 -7 -7 -7 ------- Run | Yrd Mat Min Mat Min Exi Min Mat Fac Low Low Dat Slots Evolved 6 | . . . 2 . . . 2 2 . . . Power 1 | . . . . . . . . 1 . . . Propulsion . | . . . . . . . . . . . . Utility 3 | . . . 1 . . . 1 1 . . . Weapon 2 | . . . 1 . . . 1 . . . . Parts Attached 113 | 6 8 6 11 9 1 6 35 7 3 16 5 Power 15 | 1 1 1 2 1 . . 4 1 . 4 . Engine 12 | 1 1 1 2 1 . . 3 . . 3 . Core 3 | . . . . . . . 1 1 . 1 . Reactor . | . . . . . . . . . . . . Propulsion 25 | 2 2 3 3 5 . 1 5 1 . 3 . Treads . | . . . . . . . . . . . . Leg . | . . . . . . . . . . . . Wheel 25 | 2 2 3 3 5 . 1 5 1 . 3 . Hover . | . . . . . . . . . . . . Flight . | . . . . . . . . . . . . Utility 26 | 1 2 . 4 . . 2 7 2 1 6 1 Device 4 | . . . . . . . 1 1 . 1 1 Storage 4 | 1 2 . . . . . . . 1 . . Processor 1 | . . . . . . . 1 . . . . Hackware 3 | . . . 1 . . . . 1 . 1 . Protection 14 | . . . 3 . . 2 5 . . 4 . Artifact . | . . . . . . . . . . . . Weapon 47 | 2 3 2 2 3 1 3 19 3 2 3 4 Energy Gun 4 | 1 . . . . 1 . . . . . 2 Energy Cannon 2 | . . . . . . . . . . 1 1 Ballistic Gun 18 | 1 1 . 1 2 . . 11 1 . 1 . Ballistic Cannon 12 | . 2 2 1 . . 1 3 2 . . 1 Launcher 8 | . . . . . . 2 4 . 2 . . Special Weapon . | . . . . . . . . . . . . Impact Weapon 2 | . . . . . . . 1 . . 1 . Slashing Weapon 1 | . . . . 1 . . . . . . . Piercing Weapon . | . . . . . . . . . . . . Special Melee Weapon . | . . . . . . . . . . . . Unidentified Prototypes 4 | . . . 1 . . . 2 . . 1 . Corrupted Parts 2 | . . . . . . . . . . . 2 System Corruption 4 | . . . . . . . . . . . 4 Parts Lost 44 | . 3 1 . 4 . 3 8 3 1 14 7 Power 9 | . 1 1 . 1 . . 1 1 . 3 1 Propulsion 7 | . 2 . . 1 . . 2 . . 1 1 Utility 8 | . . . . . . 2 . . . 3 3 Weapon 20 | . . . . 2 . 1 5 2 1 7 2 Highest Loss Streak 7 | . 2 1 . 2 . 2 3 1 1 6 7 To Critical Strikes . | . . . . . . . . . . . . Average Backups 23 | 2 6 22 24 24 24 24 24 24 24 22 21 Power 3 | . . 1 3 3 3 4 4 4 4 3 3 Propulsion 4 | . 1 2 4 5 5 5 3 3 4 3 4 Utility 7 | . . 1 4 6 8 8 9 9 10 9 8 Weapon 7 | 1 4 15 12 8 6 6 6 5 5 5 4 Tool/Special . | . . . . . . . . . . . . Unused Backups 35 | . . 2 8 1 . . 13 . . 1 10 Power 10 | . . . 3 . . . 3 . . 1 3 Propulsion 6 | . . 2 . . . . 4 . . . . Utility 10 | . . . 1 . . . 4 . . . 5 Weapon 8 | . . . 4 1 . . 2 . . . 1 Tool/Special 1 | . . . . . . . . . . . 1 Average Slot Usage (%) 92 | . 85 84 96 90 100 99 95 92 91 87 81 Engine 9 | . 13 13 11 11 11 11 8 7 7 9 13 Core 2 | . . . . . . . . 7 7 4 . Wheel 16 | . 27 28 22 21 22 22 16 8 7 8 6 Device 1 | . . . . . . . . 6 7 3 . Storage 9 | . 14 14 11 11 11 11 9 7 7 7 7 Processor 3 | . . . . . . . 8 7 7 7 6 Hackware 10 | . . . 9 11 11 11 9 10 15 14 14 Protection 6 | . . . 9 11 11 11 7 3 . 5 12 Ballistic Gun 14 | . 11 . 7 21 22 19 26 23 7 6 . Ballistic Cannon 10 | . 5 28 25 3 8 10 7 3 11 6 9 Launcher 2 | . . . . . . 2 . 1 10 9 . Peak Build Rating 56 | 6 11 14 23 23 24 23 41 54 56 56 49 Average Rating 32 | 5 6 13 21 20 22 21 34 50 55 49 45 On Entrance 25 | . 6 10 14 23 22 24 19 41 50 56 45 Avg Prop Armor Cover (%) . | . . . . . . . . . . . . Naked Turns . | . . . . . . . . . . . . Heaviest Build 126 | 10 93 95 105 105 102 102 111 123 120 126 126 Greatest Support 32 | 20 20 20 20 32 26 26 32 28 28 28 28 Greatest Overweight (x) 10 | . 4 4 5 10 3 4 9 5 4 5 4 Average Overweight (x) 3 | . . 4 4 3 3 3 4 4 4 4 4 Largest Inventory Capacity 25 | 8 25 25 25 25 25 25 25 25 25 25 25 Average Capacity 24 | 6 10 25 25 25 25 25 25 25 25 25 25 Most Carried 25 | 6 15 25 25 25 25 25 25 25 25 25 22 Average Carried 23 | 2 6 22 24 24 24 24 24 24 24 22 20 Final Capacity 25 | 8 25 25 25 25 25 25 25 25 25 25 25 Final Carried 25 | 6 15 25 25 23 25 23 24 25 24 22 18 Class Distribution -------------------- 25% | Tank 20% | Mutant 16% | Hacker-Skirmisher 12% | Commander-Tank 7% | Hacker-Tank 6% | Scavenger-Tank 6% | Hacker-Mutant 4% | Gunner Dominant Class ---------------- Mutant | -10/Materials Mutant | -10/Mines Scavenger-Tank | -9/Materials Mutant | -9/Mines Commander-Tank | -9/Exiles Commander-Tank | -8/Mines Tank | -8/Materials Hacker-Tank | -7/Factory Hacker-Skirmisher | -7/Lower Caves Hacker-Skirmisher | -7/Lower Caves Hacker-Mutant | -7/Data Miner Resources | -11 -10 -10 -9 -9 -9 -8 -8 -7 -7 -7 -7 ----------- Run | Yrd Mat Min Mat Min Exi Min Mat Fac Low Low Dat Matter Collected 5919 | 268 59 263 823 783 32 386 1885 297 209 912 2 Remotely . | . . . . . . . . . . . . Salvage Created 5514 | 127 216 94 802 575 100 275 1973 442 160 750 . Parts 315 | 9 8 11 58 30 6 25 107 27 8 26 . Haulers Intercepted 8 | . 1 . 2 . . . 4 1 . . . Recyclers Shooed 2 | . . . . . . 1 . 1 . . . Parts Field Recycled . | . . . . . . . . . . . . Retrieved Matter . | . . . . . . . . . . . . Parts Self-Destructed 14 | . . . . . . . . . 2 12 . Prevented 8 | . . . . . . . . . 3 5 . Parts Restored . | . . . . . . . . . . . . Kills | -11 -10 -10 -9 -9 -9 -8 -8 -7 -7 -7 -7 ------- Run | Yrd Mat Min Mat Min Exi Min Mat Fac Low Low Dat Combat Hostiles Destroyed 112 | . 4 4 19 11 . 9 37 10 4 14 . Melee 1 | . . . . . . . . . . 1 . Guns 55 | . 4 . 5 9 . 3 27 7 . . . Cannons 29 | . . 4 14 2 . 1 4 2 . 2 . AOE 27 | . . . . . . 5 6 1 4 11 . Classes Destroyed 18 | 2 2 5 2 . . 1 3 1 1 1 . Worker 11 | . . 4 1 4 . . 2 . . . . Builder 8 | . . 1 5 . . 1 1 . . . . Tunneler 4 | 2 . . . 2 . . . . . . . Hauler 8 | . 1 . 2 . . . 4 1 . . . Recycler 7 | 1 . . . 3 . 1 2 . . . . Mechanic 1 | . . . . . . . 1 . . . . Operator 3 | . . . 2 . . . . 1 . . . Swarmer 18 | . . 1 . 6 . 5 4 2 . . . Grunt 57 | . 4 . 12 5 . 2 26 3 3 2 . Brawler 1 | . . . . . . . . . 1 . . Duelist 4 | . . . . . . 2 . . . 2 . Sentry 14 | . . . 7 . . . 4 1 . 2 . Demolisher 2 | . . 2 . . . . . . . . . Specialist 4 | . . . . . . . 2 2 . . . Hunter 2 | . . . . . . . 1 . . 1 . Programmer 2 | . . . . . . . . 2 . . . Assembled 1 | . . 1 . . . . . . . . . Thug 2 | . . . . . . . . . . 2 . Savage 2 | . . . . . . . . . . 2 . Butcher 4 | . . . . . . . . . . 4 . Mutant 1 | . . . . . . . . . . 1 . Best Kill Streak 8 | 3 1 2 4 8 . 2 5 2 4 4 . Combat Bots Only 8 | . 1 2 4 8 . 2 4 2 4 4 . Max Kills in Single Turn 4 | 1 1 1 3 2 . 2 3 1 2 4 . Gunslinging 1 | . . . . 1 . . 1 . . . . Exploded 4 | . . . . . . 2 2 1 2 4 . Melee 1 | . . . . . . . . . . 1 . Uniques/NPCs Destroyed . | . . . . . . . . . . . . Combat | -11 -10 -10 -9 -9 -9 -8 -8 -7 -7 -7 -7 -------- Run | Yrd Mat Min Mat Min Exi Min Mat Fac Low Low Dat Hostile Shots Fired 654 | . 34 7 56 54 . 56 224 101 4 88 30 Missed 179 | . 6 2 15 8 . 19 51 35 2 34 7 Hits 475 | . 28 5 41 46 . 37 173 66 2 54 23 Melee 14 | . . . . . . 3 . . . 11 . Projectile 461 | . 28 5 41 46 . 34 173 66 2 43 23 AOE 3 | . . 3 . . . . . . . . . Critical Strikes 17 | . 2 . . 1 . 2 9 . . 3 . Part Disruptions 2 | . . . . . . . . 1 . . 1 Damage Taken 8457 | . 374 153 613 540 . 582 2487 785 57 1816 1050 Core 1241 | . 65 . 126 85 . 47 329 138 15 182 254 Absorbed by Shields 295 | . . . . . . . . 295 . . . Redirected to Shielding 99 | . . . . . . . . . . 9 90 Core Remaining (%) 62 | 100 . 74 . . . 35 40 . . . . Volleys Fired 347 | 8 33 15 68 31 6 29 97 24 3 27 6 Largest 4 | 2 2 2 3 3 3 3 4 4 4 4 4 Hottest 179 | 60 66 74 107 97 81 86 153 141 136 165 179 Shots Fired 1051 | 16 66 30 204 74 10 80 365 96 11 81 18 Gun 643 | 16 52 . 51 58 8 48 284 82 3 32 9 Cannon 360 | . 14 30 153 16 2 27 75 11 . 23 9 Launcher 48 | . . . . . . 5 6 3 8 26 . Special . | . . . . . . . . . . . . Kinetic 944 | 8 40 30 204 74 6 75 352 93 3 52 7 Thermal 40 | 8 26 . . . . . . . . . 6 Explosive 34 | . . . . . . 5 6 3 5 15 . Electromagnetic 33 | . . . . . 4 . 7 . 3 14 5 Robot Hit Streak 12 | 4 12 6 8 10 4 10 11 11 5 10 3 Robot Miss Streak 10 | 1 2 2 6 5 1 7 10 4 1 3 2 Penetration Max 1 | . . . . . . . 1 . . 1 . Secondary Targets 6 | . 1 . . 2 . . 3 . . . . Max Gunslinging Chain 2 | . 1 . . 1 . . 2 . . . . Shots Hit Robots 576 | 11 42 17 81 49 4 40 211 54 8 48 11 Core Hits 274 | 6 14 8 32 27 3 20 85 27 8 39 5 Critical Kills 3 | . . . 1 . . . 2 . . . . Critical Parts Destroyed 4 | . . . 1 . . . 1 . . 2 . Critical Strikes 17 | . . . 4 1 . 1 8 . . 3 . Destroy 6 | . . . 2 . . . 4 . . . . Blast 8 | . . . 2 1 . 1 3 . . 1 . Corrupt 1 | . . . . . . . 1 . . . . Smash 2 | . . . . . . . . . . 2 . Melee Attacks 6 | . . . . . . . 1 . . 5 . Impact 6 | . . . . . . . 1 . . 5 . Slashing . | . . . . . . . . . . . . Piercing . | . . . . . . . . . . . . Sneak Attacks 3 | . . . . . . . . . . 3 . Combat Hostiles . | . . . . . . . . . . . . Follow-up Attacks . | . . . . . . . . . . . . Damage Inflicted 13865 | 104 447 409 2155 978 99 999 4502 1237 470 2292 173 Guns 6690 | 104 408 . 343 762 77 469 3097 931 44 405 50 Cannons 3958 | . 39 409 1645 216 22 193 806 148 . 357 123 Explosions 2962 | . . . 167 . . 337 599 158 426 1275 . Melee 255 | . . . . . . . . . . 255 . Ramming . | . . . . . . . . . . . . Kinetic 10085 | 39 189 409 1988 978 84 662 3812 1079 44 713 88 Thermal 515 | 65 258 . . . . . 35 . . 130 27 Explosive 2276 | . . . 167 . . 337 564 158 300 750 . Electromagnetic 734 | . . . . . 15 . 91 . 126 444 58 Impact 255 | . . . . . . . . . . 255 . Slashing . | . . . . . . . . . . . . Piercing . | . . . . . . . . . . . . Highest Corruption 17 | . . . . . . . . 2 2 15 17 Average Corruption 5 | . . . . . . . . 1 2 7 14 Corruption Purged 3 | . . . . . . . . . . 3 . Corruption Blocked . | . . . . . . . . . . . . Effects 78 | . . . . . . . . 8 15 46 9 Message Errors 18 | . . . . . . . . 1 1 15 1 Matter Fused 23 | . . . . . . . . 3 4 13 3 Heat Flow Errors 8 | . . . . . . . . . 1 7 . Energy Discharges 7 | . . . . . . . . . 6 . 1 Parts Rejected 1 | . . . . . . . . . . 1 . Data Loss (minor) 8 | . . . . . . . . 2 1 3 2 Data Loss (major) 4 | . . . . . . . . . 2 1 1 Misfires 3 | . . . . . . . . 2 . 1 . Alerts 3 | . . . . . . . . . . 3 . Misdirections 2 | . . . . . . . . . . 1 1 Weapon Failures 1 | . . . . . . . . . . 1 . Overload Shots . | . . . . . . . . . . . . Overflow Damage 327 | . . 20 123 4 . . 18 . 29 133 . Projectiles 64 | . . 20 40 4 . . . . . . . Explosions 148 | . . . 83 . . . 18 . 29 18 . Melee 115 | . . . . . . . . . . 115 . Knockbacks 19 | . . 2 4 2 . 1 5 1 . 2 2 Impact . | . . . . . . . . . . . . Kinetic 18 | . . 2 4 2 . 1 4 1 . 2 2 Secondary 1 | . . . . . . . 1 . . . . Self-Inflicted Damage 507 | . . . 56 . . . 25 93 25 308 . Shots 18 | . . . 1 . . . 1 3 1 12 . Rammed . | . . . . . . . . . . . . Targets Rammed . | . . . . . . . . . . . . Kicked . | . . . . . . . . . . . . Crushed . | . . . . . . . . . . . . Highest Temperature 465 | 40 201 48 465 170 32 135 399 292 217 323 158 Average Temperature 91 | 24 59 15 103 45 18 44 123 95 98 81 67 Received Heat Transfer 2150 | . 255 20 228 282 . 60 1044 78 18 165 . Effects 10 | . . . 2 . . . 6 1 . 1 . Shutdowns 3 | . . . 1 . . . 1 . . 1 . Energy Bleed 3 | . . . . . . . 3 . . . . Interference 2 | . . . . . . . 1 1 . . . Short Circuit 1 | . . . . . . . 1 . . . . Damage (minor) 1 | . . . 1 . . . . . . . . Siege Activations . | . . . . . . . . . . . . Martial Activations . | . . . . . . . . . . . . Shielding Activations . | . . . . . . . . . . . . Robots Disrupted 1 | . . . . . . . . . 1 . . Combat Hostiles 1 | . . . . . . . . . 1 . . Robots Corrupted 1 | . . . . . . . . . . 1 . Combat Hostiles . | . . . . . . . . . . . . Parts Fried 2 | . . . . . . . . . 1 1 . Impact Corruptions 3 | . . . . . . . . . . 3 . Robots Melted . | . . . . . . . . . . . . Combat Hostiles . | . . . . . . . . . . . . Parts Melted 2 | . 1 . . . . . . . . 1 . Heat Transferred 1036 | 150 575 . . . . . 50 . . 150 111 Parts Sabotaged . | . . . . . . . . . . . . Parts Stolen . | . . . . . . . . . . . . Parts Stripped . | . . . . . . . . . . . . Power Chain Reactions 2 | . . . . . . . 1 . . 1 . Alert | -11 -10 -10 -9 -9 -9 -8 -8 -7 -7 -7 -7 ------- Run | Yrd Mat Min Mat Min Exi Min Mat Fac Low Low Dat Maximum Alert Level 2 | . . . . 1 . 1 2 1 . . . Low Security (%) 75 | 100 100 100 100 93 . 34 34 94 . . . Level 1 19 | . . . . 6 . 65 44 5 . . . Level 2 5 | . . . . . . . 20 . . . . Level 3 . | . . . . . . . . . . . . Level 4 . | . . . . . . . . . . . . Level 5 . | . . . . . . . . . . . . High Security . | . . . . . . . . . . . . Max Security . | . . . . . . . . . . . . Peak Influence 490 | 10 40 83 171 223 . 309 490 220 . . . Initial 220 | . . . 29 27 . . 91 220 . . . Average 124 | . 10 3 84 42 . 210 266 101 . . . Influence Increases 4303 | 15 142 164 922 367 12 617 1465 344 90 165 . Destroy 0b10 Robot/C 2440 | . 80 100 460 240 . 340 800 200 80 140 . Destroy 0b10 Robot/NC 265 | 15 5 25 80 45 10 10 65 10 . . . Destroy Leader 556 | . 22 20 130 40 . 70 182 72 10 10 . Allied During Kill 212 | . . 11 48 24 2 91 36 . . . . Successful Hack 47 | . 4 . 31 . . . 12 . . . . Select Force Hacks 90 | . . . 30 . . . 60 . . . . Disable Machine 240 | . . . 75 . . 60 75 30 . . . Destroy Structure 168 | . 1 8 68 3 . 31 40 17 . . . Lose Combat Pursuer 285 | . 30 . . 15 . 15 195 15 . 15 . Influence Decreases 4303 | 15 142 87 928 261 189 382 1214 827 93 165 . Entered New Map 681 | . . . 48 44 177 . 144 266 2 . . Time Decay 2469 | 15 112 77 453 177 12 352 630 458 81 102 . Lost Part 284 | . 30 10 . 40 . 30 80 21 10 63 . Lost Ally 120 | . . . 60 . . . 60 . . . . Purge Threat 749 | . . . 367 . . . 300 82 . . . Squads Dispatched 20 | . 1 . 2 . . . 9 7 . 1 . Investigation 5 | . 1 . 1 . . . 3 . . . . Extermination 3 | . . . . . . . . 3 . . . Reinforcement 5 | . . . 1 . . . 2 2 . . . Assault 2 | . . . . . . . 1 . . 1 . Garrison 5 | . . . . . . . 3 2 . . . Intercept . | . . . . . . . . . . . . Searches Triggered . | . . . . . . . . . . . . Construction Impeded . | . . . . . . . . . . . . Haulers Reinforced . | . . . . . . . . . . . . Active Scanning Responses . | . . . . . . . . . . . . Cargo Convoy Interrupts . | . . . . . . . . . . . . Stealth | -11 -10 -10 -9 -9 -9 -8 -8 -7 -7 -7 -7 --------- Run | Yrd Mat Min Mat Min Exi Min Mat Fac Low Low Dat Distress Signals 7 | . . . 4 . . . 2 . . 1 . Communications Jammed . | . . . . . . . . . . . . Distress Signals . | . . . . . . . . . . . . Times Spotted 172 | . 9 6 32 14 . 17 56 16 4 15 3 Peak Tracking Total 7 | . 4 3 5 6 . 4 5 3 4 7 3 Tactical Retreats 16 | . 1 . . 1 . 1 11 1 . 1 . Traps | -11 -10 -10 -9 -9 -9 -8 -8 -7 -7 -7 -7 ------- Run | Yrd Mat Min Mat Min Exi Min Mat Fac Low Low Dat Traps Triggered 9 | . 1 1 . . . . . 7 . . . Indirectly . | . . . . . . . . . . . . Trap Hack Attempts . | . . . . . . . . . . . . Triggered . | . . . . . . . . . . . . Disarmed 6 | . . . . . . . 6 . . . . Reprogrammed . | . . . . . . . . . . . . Reused . | . . . . . . . . . . . . Traps Extracted . | . . . . . . . . . . . . Installed . | . . . . . . . . . . . . Triggered . | . . . . . . . . . . . . Machines | -11 -10 -10 -9 -9 -9 -8 -8 -7 -7 -7 -7 ---------- Run | Yrd Mat Min Mat Min Exi Min Mat Fac Low Low Dat Machines Disabled 19 | . 1 . 5 . 1 4 5 2 . . 1 Max in Single Turn 1 | . 1 . 1 . 1 1 1 1 . . 1 Garrison Access 2 | . . . . . . . 1 1 . . . Machines Repaired . | . . . . . . . . . . . . Machines Dismantled . | . . . . . . . . . . . . Machines Sabotaged . | . . . . . . . . . . . . Overloaded Fab Kills . | . . . . . . . . . . . . Hacking | -11 -10 -10 -9 -9 -9 -8 -8 -7 -7 -7 -7 --------- Run | Yrd Mat Min Mat Min Exi Min Mat Fac Low Low Dat Machines Accessed 34 | . 2 1 8 . 2 . 11 6 . . 4 Terminals 18 | . 2 . 6 . . . 7 3 . . . Fabricators 1 | . . . . . . . . 1 . . . Repair Stations . | . . . . . . . . . . . . Recycling Units 3 | . . . 1 . . . 2 . . . . Scanalyzers 3 | . . . 1 . . . 1 1 . . . Garrison Access 2 | . . . . . . . 1 1 . . . Total Hacks 113 | . 5 1 38 . 2 . 28 13 . . 26 Successful 72 | . 3 1 21 . 2 . 13 6 . . 26 Failed 38 | . 2 . 16 . . . 14 6 . . . Catastrophic 4 | . . . 3 . . . 1 . . . . Database Lockouts 3 | . . . 1 . . . 1 1 . . . Manual 56 | . 5 . 23 . . . 22 6 . . . Terminals 67 | . 5 . 35 . . . 19 8 . . . Fabricators 1 | . . . . . . . . 1 . . . Repair Stations . | . . . . . . . . . . . . Recycling Units 5 | . . . 1 . . . 4 . . . . Scanalyzers 8 | . . . 2 . . . 3 3 . . . Garrison Access 3 | . . . . . . . 2 1 . . . Terminal Hacks 50 | . . 1 13 . 2 . 6 2 . . 26 Record 13 | . . . . . 2 . . . . . 11 Part Schematic 9 | . . . . . . . . . . . 9 Robot Schematic 3 | . . . . . . . . . . . 3 Prototype ID Bank 7 | . . . 3 . . . 1 . . . 3 Open Door 1 | . . 1 . . . . . . . . . Branch Access Points 3 | . . . 1 . . . 1 1 . . . Recycling Unit Index 2 | . . . 1 . . . 1 . . . . Scanalyzer Index 1 | . . . 1 . . . . . . . . Unreport Threat 8 | . . . 5 . . . 2 1 . . . Disarm Traps 1 | . . . . . . . 1 . . . . Hauler Manifests 1 | . . . 1 . . . . . . . . Registered Components 1 | . . . 1 . . . . . . . . Fabricator Hacks 1 | . . . . . . . . 1 . . . Network Status 1 | . . . . . . . . 1 . . . Repair Station Hacks . | . . . . . . . . . . . . Recycling Unit Hacks . | . . . . . . . . . . . . Scanalyzer 6 | . . . 2 . . . 2 2 . . . Insert Component 1 | . . . 1 . . . . . . . . Analyze 1 | . . . 1 . . . . . . . . Retrieve Study 4 | . . . . . . . 2 2 . . . Garrison Access Hacks 2 | . . . . . . . 1 1 . . . Seal Access 2 | . . . . . . . 1 1 . . . Unauthorized Hacks 13 | . 3 . 6 . . . 4 . . . . Terminals 10 | . 3 . 5 . . . 2 . . . . Assimilate 1 | . . . 1 . . . . . . . . Botnet 7 | . 2 . 3 . . . 2 . . . . Operators 2 | . 1 . 1 . . . . . . . . Fabricators . | . . . . . . . . . . . . Repair Stations . | . . . . . . . . . . . . Recycling Units 3 | . . . 1 . . . 2 . . . . Tunnel 3 | . . . 1 . . . 2 . . . . Scanalyzers . | . . . . . . . . . . . . Garrison Access . | . . . . . . . . . . . . Data Cores Recovered 2 | . . . 2 . . . . . . . . Used 1 | . . . 1 . . . . . . . . Hacking Detections 20 | . 2 . 7 . . . 7 4 . . . Full Trace Events 1 | . . . . . . . 1 . . . . Feedback Events . | . . . . . . . . . . . . Feedback Blocked . | . . . . . . . . . . . . Robot Schematics Acquired 3 | . . . . . . . . . . . 3 Robots Built . | . . . . . . . . . . . . Authchips . | . . . . . . . . . . . . Time . | . . . . . . . . . . . . Total Robot Build Rating . | . . . . . . . . . . . . Part Schematics Acquired 10 | . . . 1 . . . . . . . 9 Parts Built . | . . . . . . . . . . . . Authchips . | . . . . . . . . . . . . Time . | . . . . . . . . . . . . Total Part Build Rating . | . . . . . . . . . . . . Part Studies Acquired 4 | . . . . . . . 2 2 . . . Parts Repaired . | . . . . . . . . . . . . Time . | . . . . . . . . . . . . Parts Recycled . | . . . . . . . . . . . . Recycled Matter . | . . . . . . . . . . . . Retrieved Matter . | . . . . . . . . . . . . Retrieved Components . | . . . . . . . . . . . . Parts Scanalyzed 1 | . . . 1 . . . . . . . . Part Schematics Acquired 1 | . . . 1 . . . . . . . . Parts Damaged . | . . . . . . . . . . . . Bothacking | -11 -10 -10 -9 -9 -9 -8 -8 -7 -7 -7 -7 ------------ Run | Yrd Mat Min Mat Min Exi Min Mat Fac Low Low Dat Used RIF Installer . | . . . . . . . . . . . . Robots Hacked . | . . . . . . . . . . . . Non-combat . | . . . . . . . . . . . . Combat . | . . . . . . . . . . . . Robot Hacks Applied . | . . . . . . . . . . . . Relay Couplers Released . | . . . . . . . . . . . . Fabnet Peak Effective % . | . . . . . . . . . . . . Robots Rewired 5 | . . . . . 5 . . . . . . Allies Hacked . | . . . . . . . . . . . . Hacks Repelled . | . . . . . . . . . . . . Allies | -11 -10 -10 -9 -9 -9 -8 -8 -7 -7 -7 -7 -------- Run | Yrd Mat Min Mat Min Exi Min Mat Fac Low Low Dat Total Allies 11 | . . 3 1 2 5 . . . . . . Largest Group 5 | . . 3 3 2 5 5 4 . . . . Highest-Rated Group 66 | . . 40 40 45 66 66 58 . . . . Highest-Rated Ally 31 | . . 16 16 31 31 21 21 . . . . Total Orders . | . . . . . . . . . . . . Ally Attacks 143 | . . 11 59 3 . 35 35 . . . . Total Damage 1679 | . . 42 555 42 . 361 679 . . . . Kills 29 | . . 2 11 1 . 8 7 . . . . Allies Corrupted . | . . . . . . . . . . . . Allies Melted 1 | . . . . . . . . . . 1 . Intel | -11 -10 -10 -9 -9 -9 -8 -8 -7 -7 -7 -7 ------- Run | Yrd Mat Min Mat Min Exi Min Mat Fac Low Low Dat Active Infowar (turns) 2014 | . . . . . . . 2 . 1010 1002 . Sensors 2014 | . . . . . . . 2 . 1010 1002 . Robot Analysis Total . | . . . . . . . . . . . . Derelict Logs Recovered 9 | . . 2 . 2 . . . . 2 3 . Drone Launches . | . . . . . . . . . . . . Drone Recoveries . | . . . . . . . . . . . . Exploration | -11 -10 -10 -9 -9 -9 -8 -8 -7 -7 -7 -7 ------------- Run | Yrd Mat Min Mat Min Exi Min Mat Fac Low Low Dat Turns Passed 12621 | 112 410 1103 1371 1297 947 829 2181 1183 1020 2002 166 Spaces Moved 7468 | 94 298 733 732 806 644 526 1124 658 584 1177 92 Core 2 | 2 . . . . . . . . . . . Treads . | . . . . . . . . . . . . Legs . | . . . . . . . . . . . . Wheels 7466 | 92 298 733 732 806 644 526 1124 658 584 1177 92 Hover . | . . . . . . . . . . . . Flight . | . . . . . . . . . . . . Fastest Speed 50 | 50 80 140 140 135 135 135 135 135 150 135 150 Average Speed 144 | 79 86 140 153 145 135 137 152 153 150 151 150 Slowest Speed 230 | 80 140 140 155 230 135 140 225 165 150 165 150 Overloaded Moves . | . . . . . . . . . . . . Propulsion Burnouts . | . . . . . . . . . . . . Robots Hopped . | . . . . . . . . . . . . Potential Cave-ins 13 | . . . . . . . . . 1 12 . Cave-ins Triggered 1 | . . . . . . . . . . 1 . Exploration Rate (%) 65 | 3 33 99 67 98 91 94 64 19 56 90 76 Regions Visited 11 Branch Regions 7 Pre-discovered Areas 5 | . . 1 1 . . . 2 . . . 1 Known Exits Taken 6 | . . . 1 . . 1 1 1 1 1 . Unknown Exits Taken 5 | 1 1 1 . 1 1 . . . . . . Scrap Searched 13 | . . 1 . 2 . 1 . . . 9 . Spaces Dug 104 | . 2 1 34 . . . 1 8 . 58 . Terrain Destroyed 378 | . 2 8 66 3 . 35 37 18 30 179 . Melee . | . . . . . . . . . . . . Projectile 84 | . 2 8 38 3 . 3 14 4 . 12 . AOE 294 | . . . 28 . . 32 23 14 30 167 . Terrain Rammed . | . . . . . . . . . . . . Walls Destroyed . | . . . . . . . . . . . . Machines Disabled . | . . . . . . . . . . . . Actions | -11 -10 -10 -9 -9 -9 -8 -8 -7 -7 -7 -7 --------- Run | Yrd Mat Min Mat Min Exi Min Mat Fac Low Low Dat Total 8650 | 113 391 783 842 868 713 568 1446 779 717 1325 105 Wait 424 | . 36 9 1 13 8 . 117 44 125 70 1 Move 7456 | 93 297 732 731 805 643 525 1123 657 583 1175 92 Hop . | . . . . . . . . . . . . Pick Up 94 | 6 10 14 13 2 3 2 26 5 . 13 . Fast Attach 34 | 6 4 . 1 2 . . 11 3 . 7 . Attach 45 | . 3 1 2 3 . 3 9 3 1 16 4 Detach 13 | . 4 . . . . . 3 2 . 4 . Swap 63 | . 1 5 8 6 1 7 20 4 5 4 2 Drop 84 | . 3 7 18 6 1 2 39 5 . 3 . Fire 347 | 8 33 15 68 31 6 29 97 24 3 27 6 Melee 6 | . . . . . . . 1 . . 5 . Ram . | . . . . . . . . . . . . Kick . | . . . . . . . . . . . . Crush . | . . . . . . . . . . . . Escape Stasis 33 | . . . . . . . . 32 . 1 . Rewire 51 | . . . . . 51 . . . . . . Trap . | . . . . . . . . . . . . Miscellaneous . | . . . . . . . . . . . . Route ------- -11/Scrapyard -10/Materials -10/Mines (discovered 3 exits: *Mat x2 / [*Sub]) -9/Materials (discovered 3 exits: *Mat x2 / *Min) -9/Mines (discovered 3 exits: *Mat x2 / *Exi) -9/Exiles (discovered 2 exits: [*Min x2]) -8/Mines (discovered 2 exits: *Mat x2) -8/Materials -7/Factory (discovered 4 exits: *Fac / Sto / *Low x2) -7/Lower Caves -7/Lower Caves (discovered 2 exits: *Fac / *Dat) -7/Data Miner (discovered 1 exit: [*Pro]) History --------- Turn | Location | Event 27 | -11/Scrapyard | Discovered new exit (range 15) 113 | -11/Scrapyard | Entered Materials 308 | -10/Materials | Build established: Mutant 471 | -10/Materials | Discovered new exit (range 6) 523 | -10/Materials | Entered Mines 524 | -10/Mines | Assembled infested the area 529 | -10/Mines | Assisted by a Guerilla fighting off Assembled 569 | -10/Mines | Met a Derelict who couldn't figure out how to use a Trap Extractor 624 | -10/Mines | Discovered new exit (range 7) 689 | -10/Mines | Found a hidden stash of uninstalled traps 776 | -10/Mines | Discovered new exit (range 14) 916 | -10/Mines | Discovered new exit (range 15) 1111 | -10/Mines | Learned Materials garrison access intel 1515 | -10/Mines | Assisted by bots powering up and referring to "LRC-V3" 1626 | -10/Mines | Entered Materials 1626 | -9/Materials | Accompanied by 3 allies 1626 | -9/Materials | Evolved 2 slots: Utility x1, Weapon x1 1855 | -9/Materials | Discovered new exit (range 8) 2077 | -9/Materials | Build established: Scavenger-Tank 2136 | -9/Materials | Central database locked down 2206 | -9/Materials | Identified exit to Mines 2318 | -9/Materials | Discovered new exit (range 12) 2696 | -9/Materials | Build established: Tank 2733 | -9/Materials | Discovered new exit (range 3) 2997 | -9/Materials | Entered Mines 3038 | -9/Mines | Met a Derelict bent on vengeance 3199 | -9/Mines | Learned Materials stockpile data 3218 | -9/Mines | Identified exit to Materials 3318 | -9/Mines | Deemed a non-threat by the Exiles lab entrance 3320 | -9/Mines | Discovered new exit (range 5) 3370 | -9/Mines | Found a damaged Exp. Sensor Array with a note attached 3371 | -9/Mines | Build established: Mutant 3377 | -9/Mines | Found Prototype Device 3439 | -9/Mines | Discovered exit to Materials (range 9) 4052 | -9/Mines | Core integrity fell below 50% 4086 | -9/Mines | Destroyed 8 combat bots 4294 | -9/Mines | Entered Exiles 4294 | -9/Exiles | Found Exiles lab destroyed 4294 | -9/Exiles | Accompanied by 2 allies 4324 | -9/Exiles | Led the pair of lost Derelicts to a safe place 4353 | -9/Exiles | Build established: Tank 4606 | -9/Exiles | Discovered new exit (range 14) 4866 | -9/Exiles | Build established: Commander-Tank 5218 | -9/Exiles | Discovered new exit (range 14) 5241 | -9/Exiles | Entered Mines 5241 | -8/Mines | Accompanied by 5 allies 5755 | -8/Mines | Discovered exit to Materials (range 6) 6039 | -8/Mines | Discovered exit to Materials (range 9) 6070 | -8/Mines | Entered Materials 6070 | -8/Materials | Accompanied by 4 allies 6070 | -8/Materials | Evolved 2 slots: Utility x1, Weapon x1 6072 | -8/Materials | Loaded intel: 1 garrison access location 6418 | -8/Materials | Lost 3 allies 6451 | -8/Materials | Discovered new exit (range 16) 6591 | -8/Materials | Identified Exp. Sensor Array 6888 | -8/Materials | Build established: Gunner 6949 | -8/Materials | Central database locked down 7296 | -8/Materials | Build established: Tank 7560 | -8/Materials | Garrison activated, responded to threat 7901 | -8/Materials | Lost 3 parts (1p2w) 7986 | -8/Materials | Core integrity fell below 50% 8070 | -8/Materials | First assault squad dispatched 8249 | -8/Materials | Identified exit to Factory 8251 | -8/Materials | Entered Factory 8251 | -7/Factory | Evolved 2 slots: Power x1, Utility x1 8656 | -7/Factory | Central database locked down 8719 | -7/Factory | Garrison activated, responded to threat 9151 | -7/Factory | Build established: Hacker-Tank 9188 | -7/Factory | Identified exit to Storage 9188 | -7/Factory | Identified exit to Lower Caves 9224 | -7/Factory | Discovered new exit (range 12) 9351 | -7/Factory | Allied Derelicts emerged from ambush trap array 9434 | -7/Factory | Entered Lower Caves 9437 | -7/Lower Caves | Learned 12 Factory zone layouts 9730 | -7/Lower Caves | Build established: Hacker-Skirmisher 10083 | -7/Lower Caves | Learned Factory garrison access intel 10234 | -7/Lower Caves | Encountered a Warlord checkpoint 10439 | -7/Lower Caves | Discovered new exit (range 11) 10452 | -7/Lower Caves | Identified exit to Lower Caves 10454 | -7/Lower Caves | Entered another Lower Caves area 10853 | -7/Lower Caves | Attracted the attention of an 0b10 checkpoint 10882 | -7/Lower Caves | Learned Factory trap positions 11325 | -7/Lower Caves | Discovered new exit (range 7) 11332 | -7/Lower Caves | Identified exit to Factory 11456 | -7/Lower Caves | Crushed by falling debris 11457 | -7/Lower Caves | System corruption reached 10% 11487 | -7/Lower Caves | Lost 3 parts (2u1w) 11512 | -7/Lower Caves | Found Alien Artifact 11515 | -7/Lower Caves | Identified Core Expander 11515 | -7/Lower Caves | Installed Core Expander, added new Utility slot 11668 | -7/Lower Caves | Attracted the attention of an 0b10 outpost 11743 | -7/Lower Caves | Lost 6 parts (2p1n3w) 11786 | -7/Lower Caves | Learned Factory stockpile data 11940 | -7/Lower Caves | Attacked by a faux Warlord 12035 | -7/Lower Caves | Lost 3 parts (3w) 12215 | -7/Lower Caves | Learned Factory non-interactive machine intel 12291 | -7/Lower Caves | Build established: Hacker-Mutant 12388 | -7/Lower Caves | Lost 3 allies 12428 | -7/Lower Caves | Discovered new exit (range 8) 12435 | -7/Lower Caves | Identified exit to Data Miner 12456 | -7/Lower Caves | Entered Data Miner 12456 | -7/Data Miner | Discovered new exit (range 6) 12485 | -7/Data Miner | Met Data Miner 12531 | -7/Data Miner | Learned location of Section 7 (-2) 12531 | -7/Data Miner | Acquired the access code to Warlord's prototype stash 12563 | -7/Data Miner | Received God Mode back door access code from Data Miner 12577 | -7/Data Miner | Data Conduit disabled 12610 | -7/Data Miner | Core integrity fell below 50% 12622 | -7/Data Miner | Self-destructed Last Messages --------------- better use than Warlord, so if you see an opportunity, hack it and enter \\KXKT to gain control via the back door I've installed. Now off with you. 12575_ Integrated Corrupted Riot Gun (+2). 12576_ System corrupted: Component data lost. 12577_ Data Conduit disabled. 12577_ Data Miner disappears through a trap door. 12585_ Acquired 2 matter. 12597_ System corrupted: Matter fused (-5). 12608_ Riot Gun destroyed. 12608_ Gauss Cannon destroyed. 12608_ Imp. Medium Armor Plating destroyed. 12610_ Arm. Huge Wheel+ destroyed. 12611_ Enhanced Grunt knocked back. 12614_ System corrupted: Energy discharge (-104). 12615_ Imp. Power Shielding destroyed. 12615_ Imp. Deuterium Engine destroyed. 12615_ Imp. Signal Interpreter destroyed. 12615_ Enhanced Grunt knocked back. 12617_ Enhanced Grunt destroyed. Map ----- +----------------------------------------------------+ | | | | | | | | | | | | | | | | | ??????????????????????????????????????????? | | ??????????????????????????????????????????? | | ??????????????????????????????????????????? | | ??????????????????????????????????????????? | | ?????????????????????????????????????####?? | | ??????###############??????????????### #?? | | ?????"""""""""""""""######?#?#????## #?? | | ????""""""""" " """"""# # ###### < ##?? | | ????""""""""" ### | | ????"""""" | | ???""""""" | | ???"""""" | | ???"""""" | | ???""""""" g! """"""""""""""""### | | ????""""""" % %%= """"###############?? | | ????""""""" g!"""""###???????????????? | | ????#"""""""" "#####?????????????????? | | ?????#######""# @"#?????????????????????? | | ???????????#"### "#?????????????????????? | | ???????????#"### "#?????????????????????? | | ???????????#"## "#?????????????????????? | | ???????????#"## "#?????????????????????? | | ?????????????# "#?????????????????????? | | ?????????????#;# "#?????????????????????? | | ?????????????### "##????????????????????? | | ??????????????## ""#????????????????????? | | ???????????#?## ""#????????????????????? | | ??????????##"#"X ""#????????????????????? | | ??????????""""" "####?????????????????? | | ??????????""""" X"""""?????????????????? | | ??????????##"#"X "##"#?????????????????? | | ???????????#?## X""""#?????????????????? | | ??????????????## "##"#?????????????????? | | ???????????????#######????????????????????? | | ??????????????????????????????????????????? | | ??????????????????????????????????????????? | | ??????????????????????????????????????????? | | ??????????????????????????????????????????? | | ??????????????????????????????????????????? | | ??????????????????????????????????????????? | | ??????????????????????????????????????????? | | ??????????????????????????????????????????? | +----------------------------------------------------+ Best States ------------- Heat Dissipation 53 Energy Generation 28 Energy Capacity 455 Matter Stores 300 Matter Capacity 300 Sight Range 16 Robot Scan Range 20 Terrain Scan Density 10 Armor Coverage 450 Power Shielding 66 Propulsion Shielding 66 Evasion (%) 44 Offensive Hacking 21 Item Schematics ----------------- Hacking Suite | -9/Materials | Scanalyzed Combat Drone Bay | -7/Data Miner | Free Lgt. Regenerative Plating | -7/Data Miner | Free Cld. Cesium-ion Thruster | -7/Data Miner | Free Scatter Rocket Array | -7/Data Miner | Free Exp. Weapon Shielding | -7/Data Miner | Free Imp. Launcher Guidance Computer | -7/Data Miner | Free Cmb. Gravmag System | -7/Data Miner | Free Wave Gun | -7/Data Miner | Free Adv. VSS Leg | -7/Data Miner | Free Robot Schematics ------------------ W-25 Informer | -7/Data Miner | Free G-50 Soldier | -7/Data Miner | Free M-28 Smith | -7/Data Miner | Free Fabricated ------------ Nothing Repaired ---------- Nothing Studied --------- Com. Wheel | -8/Materials | Hacked Rocket Launcher | -8/Materials | Hacked Arm. Huge Wheel | -7/Factory | Hacked Gauss Rifle | -7/Factory | Hacked Alien Tech Used ----------------- Core Expander Achievements -------------- None Challenges ------------ None Game ------ Seed ForceDiametricPurifier Manual? 0 Play Time 01:13:18 Cumulative 101.9 hours Start 2026.02.24 @ 18:36:02 End 2026.02.24 @ 20:02:05 Sessions 1 Manual Loads 0 Difficulty Rogue Special Mode None Game No. 207 Rogue 207 Adventurer 0 Explorer 0 Win Type - Total 2 Types 1/0/0/1/0/0/0/0/0/0 Lore% 53 Gallery% 40 Achievement% 40 Wizard Run 0 Options --------- Layout 0 ASCII 0 Keyboard 1 Movement Arrows Keybinds 0 Fullscreen 1 Font 18/Smallcaps Map View 38x25 Zoom Use 49% Tactical HUD 1 Map Filters NONE Filters NONE Steam 1 RUN: 3e8b1388-3e4f-4931-bcb5-7191a8964cf0